[Event "Satranc Arena IM Series-1 2024"]
[Site "Izmir"]
[Date "2024.03.19"]
[Round "3.1"]
[White "Kuru, Atilla"]
[Black "Aydin, Gulenay"]
[Result "1/2-1/2"]
[ECO "B86"]
[WhiteElo "2246"]
[BlackElo "2152"]
[Annotator "TA"]
[PlyCount "102"]
[EventDate "2024.03.18"]
[EventCountry "TUR"]
[SourceTitle "playchess.com"]
[Source "ChessBase"]
[SourceQuality "1"]
[TimeControl "5400+30"]

{[%evp 13,102,0,0,0,0,0,10,12,24,15,25,-45,21,29,22,31,29,25,35,0,25,-22,-25,-27,13,16,19,-74,-73,-79,-96,-89,-75,-80,-82,-81,-87,-83,-51,-97,-101,-86,-85,-87,-81,-83,-84,-76,-62,-77,-29,-88,-44,-44,-26,-34,-27,-27,0,0,0,0,0,0,0,0,0,0,0,0,0,0,0,0,0,0,0,0,0,0,0,0,0,0,0,0,0,0,0,0,0]} 1. e4 {[%emt 0:00:02]} d6 {[%emt 0:00:06]} 2. Nc3 {[%emt 0:00:24]} Nf6 {[%emt 0:07:34]} 3. Bc4 {[%emt 0:00:37]} c5 {[%emt 0:03:50]} 4. Nge2 {[%emt 0:00:07]} e6 {[%emt 0:07:25]} 5. d4 {[%emt 0:00:07]} cxd4 {[%emt 0:00:47]} 6. Nxd4 {[%emt 0:00:23]} Be7 {[%emt 0:02:15]} 7. Be3 {[%emt 0:04:19]} a6 {[%emt 0:00:56]} 8. a3 {[%emt 0:02:01]} Nc6 {[%emt 0:11:48]} 9. O-O {[%emt 0:03:14]} Bd7 {[%emt 0:11:40]} 10. f4 {[%emt 0:00:43]} Rc8 {[%emt 0:01:40][%cal Od6d5]} 11. Qe2 {[%emt 0:00:38]} O-O {[%emt 0:02:54][%cal Od6d5]} 12. Kh1 {[%emt 0:02:13]} ({Besser ist} 12. Ba2 $11) 12... Re8 {[%emt 0:08:44]} (12... Nxe4 $15 13. Nxe4 d5 14. Bxd5 (14. Nxc6 Bxc6 15. Rad1 Qe8 $15) 14... exd5) 13. Bd3 $11 {[%emt 0:03:10]} e5 {[%emt 0:03:40]} 14. Nxc6 {[%emt 0:01:21]} Bxc6 {[%emt 0:00:45]} 15. Rad1 {[%emt 0:00:14]} Qc7 {[%emt 0:01:47]} 16. Qf3 {[%emt 0:04:05]} b5 {[%emt 0:04:30]} 17. g4 {[%emt 0:14:41]} (17. fxe5 {ist eher angebracht.} dxe5 18. g4) 17... exf4 {[%emt 0:09:03]} 18. Bxf4 {[%emt 0:00:24]} Bf8 {[%emt 0:01:03]} 19. Bg5 {[%emt 0:00:38]} Re6 {[%emt 0:04:42]} 20. Bxf6 {[%emt 0:06:22]} (20. Nd5 $11 Nxd5 21. exd5) 20... Rxf6 $17 {[%emt 0:00:04]} 21. Qg3 {[%emt 0:00:11]} Rxf1+ {[%emt 0:00:34]} 22. Rxf1 {[%emt 0:00:09]} Re8 {[%emt 0:00:35]} 23. Rf5 {[%emt 0:00:54]} g6 {[%emt 0:01:38]} 24. Nd5 {[%emt 0:00:37]} Bxd5 {[%emt 0:00:02]} 25. Rxd5 {[%emt 0:00:01]} Re5 {[%emt 0:00:09]} 26. Qe3 {[%emt 0:00:26]} (26. Rxe5 $15 {kam in Betracht.} dxe5 27. Kg2) 26... Rxd5 {[%emt 0:01:12]} 27. exd5 {[%emt 0:00:05][%mdl 4096] Endspiel. KQB-KQB} Qc8 {[%emt 0:00:46]} 28. h3 {[%emt 0:00:11]} Bg7 {[%emt 0:00:30]} 29. c3 {[%emt 0:00:19]} Be5 {[%emt 0:00:14]} 30. Kg2 {[%emt 0:00:05]} Qb7 {[%emt 0:01:40]} 31. Qe4 {[%emt 0:00:48]} Qb6 {[%emt 0:00:18]} ({Vorzuziehen ist} 31... Qe7 $17 32. c4 bxc4 33. Bxc4 Qh4) 32. Qf3 {[%emt 0:00:44]} (32. g5 $11) 32... Qc5 {[%emt 0:01:14]} 33. h4 {[%emt 0:00:25]} Qc7 {[%emt 0:06:12]} (33... a5 {ist vielschichtiger.} 34. Qe4 b4 35. axb4 axb4 36. cxb4 Qc1) 34. g5 {[%emt 0:03:28][%cal Bg4g5,Bg5h6][%mdl 32]} Qd8 {[%emt 0:03:33]} 35. Qg4 {[%emt 0:00:11]} h5 {[%emt 0:01:09]} 36. gxh6 {[%emt 0:03:39] Droht h5 und aus. Die Stellung ist ausgeglichen.} Kh7 {[%emt 0:00:01]} 37. h5 {[%emt 0:00:13]} Qf6 {[%emt 0:00:08]} 38. hxg6+ {[%emt 0:00:04]} fxg6 {[%emt 0:00:41]} 39. Qe6 {[%emt 0:02:05]} Qg5+ {[%emt 0:00:47]} 40. Kf1 {[%emt 0:50:12]} Kxh6 41. Qg8 Bg7 42. Qe8 Qf4+ ({Schlechter ist} 42... Qxd5 43. Qxg6#) 43. Ke2 {[%csl Gd3][%cal Re8g6] [#]} Qe5+ 44. Qxe5 Bxe5 $11 {KB-KB} 45. Kf3 Kg5 46. Bc2 Kf6 47. a4 b4 48. cxb4 Bxb2 49. Bd3 Bc3 50. b5 axb5 51. axb5 Bd4 {Gewichteter Fehlerwert: Weiß=0.12 (sehr präzise) /Schwarz=0.10 (sehr präzise) .  Fehler:       	Weiß=5     	Schwarz=2     Ungenau:       	---       	Schwarz=4     OK:         	Weiß=19    	Schwarz=18    Bester:       	Weiß=3     	---} 1/2-1/2

[Event "Satranc Arena IM Series-1 2024"]
[Site "Izmir"]
[Date "2024.03.19"]
[Round "3.2"]
[White "Yalcinkaya, Efe"]
[Black "David, Alexandru-Vasile"]
[Result "0-1"]
[ECO "B48"]
[WhiteElo "2085"]
[BlackElo "2360"]
[Annotator "RC"]
[PlyCount "102"]
[EventDate "2024.03.18"]
[EventCountry "TUR"]
[SourceTitle "playchess.com"]
[Source "ChessBase"]
[SourceQuality "1"]
[TimeControl "5400+30"]

1. e4 {[%emt 0:00:02]} c5 {[%emt 0:00:08]} 2. Nf3 {[%emt 0:00:05]} e6 {[%emt 0:00:17]} 3. d4 {[%emt 0:00:32]} cxd4 {[%emt 0:00:07]} 4. Nxd4 {[%emt 0:00:07]} Nf6 {[%emt 0:00:36]} 5. Nc3 {[%emt 0:00:11]} Nc6 {[%emt 0:00:07]} 6. a3 {[%emt 0:00:05]} d6 {[%emt 0:01:02]} 7. Be3 {[%emt 0:00:59]} Be7 {[%emt 0:00:30]} 8. Be2 {[%emt 0:00:23]} O-O {[%emt 0:02:17]} 9. O-O {[%emt 0:00:36]} Bd7 {[%emt 0:01:27]} 10. f4 {[%emt 0:03:44]} a6 {[%emt 0:00:11]} 11. Kh1 {[%emt 0:00:41]} Qc7 {[%emt 0:00:40]} 12. Qe1 {[%emt 0:02:06]} Nxd4 {[%emt 0:01:05]} 13. Bxd4 {[%emt 0:00:06]} Bc6 {[%emt 0:00:06]} 14. Qg3 {[%emt 0:05:52]} g6 {[%emt 0:00:56]} 15. Bf3 {[%emt 0:03:32]} Rad8 {[%emt 0:01:02]} 16. f5 {[%emt 0:07:50]} e5 {[%emt 0:15:16]} 17. Be3 {[%emt 0:00:11]} b5 {[%emt 0:00:05]} 18. Bg5 {[%emt 1:12:28]} Kg7 {[%emt 0:10:35]} 19. Rad1 {[%emt 0:00:00]} Ng8 {[%emt 0:09:49]} 20. Be3 {[%emt 0:00:00]} Kh8 {[%emt 0:00:19]} 21. Qf2 {[%emt 0:01:30]} Rc8 {[%emt 0:03:45]} 22. g4 {[%emt 0:00:00]} Qb7 {[%emt 0:04:38]} 23. g5 {[%emt 0:00:00]} f6 {[%emt 0:01:05]} 24. fxg6 {[%emt 0:00:00]} fxg5 {[%emt 0:01:50]} 25. Qg2 {[%emt 0:00:00]} hxg6 {[%emt 0:04:06]} 26. Bxg5 {[%emt 0:00:00]} Bxg5 {[%emt 0:00:46]} 27. Qxg5 {[%emt 0:00:00]} Rf6 {[%emt 0:00:04]} 28. Bg2 {[%emt 0:00:00]} Rcf8 {[%emt 0:00:29]} 29. Rxf6 {[%emt 0:00:00]} Rxf6 {[%emt 0:00:06]} 30. Rd3 {[%emt 0:00:00]} b4 {[%emt 0:02:32]} 31. axb4 {[%emt 0:00:00]} Qxb4 {[%emt 0:00:13]} 32. Qc1 {[%emt 0:00:00]} Kg7 {[%emt 0:00:47]} 33. h3 {[%emt 0:00:00]} Rf2 {[%emt 0:05:02]} 34. Rf3 {[%emt 0:00:00]} Rxf3 {[%emt 0:00:09]} 35. Bxf3 {[%emt 0:00:00]} Nf6 {[%emt 0:00:06]} 36. Qd2 {[%emt 0:00:00]} a5 {[%emt 0:05:43]} 37. Qd3 {[%emt 0:02:11]} Qxb2 {[%emt 0:04:51]} 38. Qxd6 {[%emt 0:00:08]} Qxc3 {[%emt 0:00:05]} 39. Qe7+ {[%emt 0:00:03]} Kh6 {[%emt 0:00:06]} 40. Qxf6 {[%emt 0:00:15]} Qe1+ {[%emt 0:00:05]} 41. Kh2 {[%emt 0:00:29]} Qd2+ {[%emt 0:00:09]} 42. Kh1 {[%emt 0:00:20]} Qc1+ {[%emt 0:00:05]} 43. Kh2 {[%emt 0:00:58]} Qf4+ {[%emt 0:01:24]} 44. Qxf4+ {[%emt 0:00:04]} exf4 {[%emt 0:00:06]} 45. c4 {[%emt 0:00:04]} a4 {[%emt 0:00:11]} 46. Bd1 {[%emt 0:00:04]} a3 {[%emt 0:00:04]} 47. Bb3 {[%emt 0:00:02]} Bxe4 {[%emt 0:00:06]} 48. c5 {[%emt 0:00:14]} Kg5 {[%emt 0:00:05]} 49. Kg1 {[%emt 0:00:04]} Kf6 {[%emt 0:00:06]} 50. Kf2 {[%emt 0:00:06]} Ke5 {[%emt 0:00:04]} 51. Ke2 {[%emt 0:00:05]} Bd5 {[%emt 0:00:22]} 0-1

[Event "Satranc Arena IM Series-1 2024"]
[Site "Izmir"]
[Date "2024.03.19"]
[Round "3.3"]
[White "Gunduz, Umut Erdem"]
[Black "Yermolinsky, Alex"]
[Result "1/2-1/2"]
[ECO "B19"]
[WhiteElo "2314"]
[BlackElo "2421"]
[Annotator "TA"]
[PlyCount "111"]
[EventDate "2024.03.18"]
[EventCountry "TUR"]
[SourceTitle "playchess.com"]
[Source "ChessBase"]
[SourceQuality "1"]
[TimeControl "5400+30"]

{[%evp 20,111,0,0,0,0,10,0,2,-15,-30,-33,-41,-53,-49,-39,-15,-23,-16,-16,0,-13,0,-19,0,0,0,0,0,0,7,14,12,0,0,0,99,24,19,18,20,18,18,0,0,0,0,0,0,-53,-38,-43,-37,-37,-39,-46,-56,-61,0,0,0,0,0,0,0,0,0,0,0,0,0,0,0,0,0,0,0,0,0,0,0,0,0,0,0,0,0,0,0,0,0,0,0,0]} 1. e4 {[%emt 0:00:03]} c6 {[%emt 0:00:16]} 2. d4 {[%emt 0:00:11]} d5 {[%emt 0:00:05]} 3. Nc3 {[%emt 0:00:04]} dxe4 {[%emt 0:00:06]} 4. Nxe4 {[%emt 0:00:05]} Bf5 {[%emt 0:00:07]} 5. Ng3 {[%emt 0:00:04]} Bg6 {[%emt 0:00:06]} 6. h4 {[%emt 0:00:04]} h6 {[%emt 0:00:04]} 7. Nf3 {[%emt 0:00:05]} Nd7 {[%emt 0:02:04]} 8. h5 {[%emt 0:00:08]} Bh7 {[%emt 0:00:10]} 9. Bd3 {[%emt 0:00:02]} Bxd3 {[%emt 0:00:09]} 10. Qxd3 {[%emt 0:00:02]} e6 {[%emt 0:00:12]} 11. Bf4 {[%emt 0:00:06]} Qa5+ {[%emt 0:00:12]} 12. Bd2 {[%emt 0:00:25]} Bb4 {[%emt 0:00:12]} 13. c3 {[%emt 0:05:28]} Be7 {[%emt 0:00:07]} 14. Ne4 {[%emt 0:02:28]} Ngf6 {[%emt 0:01:33]} 15. c4 {[%emt 0:02:54]} Qc7 {[%emt 0:03:10]} 16. Bc3 {[%emt 0:05:09]} Nxe4 {[%emt 0:03:20]} 17. Qxe4 {[%emt 0:00:03]} Nf6 {[%emt 0:00:12]} 18. Qe2 {[%emt 0:00:09][%cal Od4d5]} O-O {[%emt 0:01:09]} 19. Ne5 {[%emt 0:01:47]} a5 {[%emt 0:14:05][%cal Ob7b5]} 20. g4 {[%emt 0:05:53]} Nd7 {[%emt 0:12:10]} 21. Nf3 {[%emt 0:06:24]} Bb4 {[%emt 0:13:09]} 22. g5 {[%emt 0:24:57]} hxg5 {[%emt 0:00:07]} 23. Nxg5 {[%emt 0:00:39]} Qf4 {[%emt 0:07:05][%csl LRd4,LRg5]} 24. Qe3 {[%emt 0:00:24]} Qxe3+ {[%emt 0:00:06]} 25. fxe3 {[%emt 0:00:03]} e5 {[%emt 0:04:27]} 26. O-O-O {[%emt 0:02:16]} Bxc3 $1 {[%emt 0:05:30]} 27. bxc3 {[%emt 0:00:03]} exd4 {[%emt 0:02:21] [#]} (27... Rae8 $1 $11 {hält das Gleichgewicht.}) 28. exd4 {[%emt 0:00:28]} ({Jedoch nicht} 28. cxd4 Rfe8 $11) (28. h6 $1 $16 {[%cal Rh6g7] Und jetzt hxg7 wäre schön.} g6 29. cxd4) 28... Rae8 $11 {[%emt 0:05:35]} 29. h6 {[%emt 0:03:39] Droht hxg7 und aus.} f6 {[%emt 0:03:46]} 30. hxg7 {[%emt 0:07:43]} Kxg7 {[%emt 0:00:08]} 31. Rh7+ {[%emt 0:00:05]} Kg6 {[%emt 0:00:05]} 32. Rxd7 {[%emt 0:00:02]} fxg5 {[%emt 0:00:11]} 33. Rxb7 {[%emt 0:00:03][%mdl 4096] Endspiel. KRR-KRR} Rf3 {[%emt 0:02:42]} 34. d5 {[%emt 0:12:54]} (34. Kb2 $11) 34... Rxc3+ $15 {[%emt 0:00:46]} 35. Kb2 {[%emt 0:00:11]} Rxc4 {[%emt 0:00:25]} 36. d6 {[%emt 0:00:35]} Rd8 {[%emt 0:04:27]} 37. Kb3 {[%emt 0:08:39]} Rc5 {[%emt 0:00:08] Weiss muss nun ...Rd5 beachten.} 38. Ka4 {[%emt 0:09:37]} Rd5 {[%emt 0:08:01]} (38... g4 $15) 39. Rxd5 $11 {[%emt 0:00:49] Die Stellung ist ausgeglichen.} cxd5 {[%emt 0:00:02] KR-KR} 40. d7 {[%emt 0:00:14]} Kf7 {[%emt 0:03:08]} 41. Kb5 {[%emt 0:00:05]} Ke7 {[%emt 0:00:06]} 42. Kc6 {[%emt 0:00:01]} (42. Kxa5 $2 {ist das falsche Schlagen.} Rxd7 43. Rb5 g4 $19) 42... g4 {[%emt 0:00:57]} 43. Rb2 {[%emt 0:05:36] [#] Weiss droht Re2+ und Matt.} Rxd7 {[%emt 0:00:08]} 44. Re2+ {[%emt 0:00:01]} Kd8 {[%emt 0:00:09]} 45. Rg2 {[%emt 0:00:03]} Rg7 {[%emt 0:00:54]} 46. Kxd5 {[%emt 0:00:02]} Kc7 {[%emt 0:02:46]} 47. Ke5 {[%emt 0:00:27]} Kc6 {[%emt 0:01:29] Zielt auf ...g3 ab.} 48. Kf6 {[%emt 0:01:01]} ({Doch nicht} 48. Kf4 Kb5 $15) 48... Rg8 {[%emt 0:00:06]} 49. Kf7 {[%emt 0:00:03]} Rb8 {[%emt 0:00:09]} 50. Rxg4 {[%emt 0:02:28]} Rb2 {[%emt 0:00:30]} 51. a4 {[%emt 0:00:38]} Rb4 {[%emt 0:03:03]} 52. Rg6+ {[%emt 0:00:01]} Kd7 {[%emt 0:00:29] ...Rf4+ ist eine echte Drohung.} 53. Kf6 {[%emt 0:00:45]} Kd6 {[%emt 0:00:11][%cal Ob4c4] Und ...Rc4! würde nun gewinnen.} 54. Kf7+ {[%emt 0:00:16]} Kc7 {[%emt 0:00:31]} 55. Ke6 {[%emt 0:00:17]} Rxa4 {[%emt 0:00:50]} 56. Kd5 {[%emt 0:00:01] Gewichteter Fehlerwert: Weiß=0.07 (makellos) /Schwarz=0.07 (makellos) .  Fehler:       	Weiß=2     	Schwarz=2     OK:         	Weiß=24    	Schwarz=17    Bester:       	Weiß=5     	Schwarz=4     Stark:        	---       	Schwarz=1} 1/2-1/2

[Event "Satranc Arena IM Series-1 2024"]
[Site "Izmir"]
[Date "2024.03.19"]
[Round "3.4"]
[White "Kazimova, Narmin"]
[Black "Ozsakallioglu, Okan"]
[Result "0-1"]
[ECO "A21"]
[WhiteElo "2147"]
[BlackElo "2365"]
[Annotator "TA"]
[PlyCount "80"]
[EventDate "2024.03.18"]
[EventCountry "TUR"]
[SourceTitle "playchess.com"]
[Source "ChessBase"]
[SourceQuality "1"]
[TimeControl "5400+30"]

{[%evp 9,80,-11,-3,-8,0,-6,0,-15,-14,-10,-10,-25,-8,-25,-7,-27,-26,-27,-13,-23,0,2,6,0,0,-54,-51,-64,0,-14,-7,-11,28,-14,-14,0,1,-11,0,-54,-14,-8,-14,-12,0,0,0,-13,-36,-8,-27,-174,-170,-182,-112,-497,-174,-275,-266,-332,-241,-302,-50,-354,-353,-340,-233,-358,-366,-527,-527,-889,-872]} 1. c4 {[%emt 0:00:05]} e5 {[%emt 0:00:11]} 2. Nc3 {[%emt 0:00:14]} Bb4 {[%emt 0:00:08]} 3. g3 {[%emt 0:00:32]} Bxc3 {[%emt 0:00:08]} 4. dxc3 {[%emt 0:00:36]} d6 {[%emt 0:02:49]} 5. Bg2 {[%emt 0:00:13]} Nf6 {[%emt 0:00:05]} 6. Nf3 {[%emt 0:04:42]} Nc6 {[%emt 0:03:54]} 7. O-O {[%emt 0:01:30]} h6 {[%emt 0:01:11]} 8. Nd2 {[%emt 0:06:30] The position is equal.} Be6 {[%emt 0:02:10]} 9. e4 {[%emt 0:02:38]} Qd7 {[%emt 0:00:40]} 10. Re1 {[%emt 0:00:56]} Bh3 {[%emt 0:05:48]} 11. Nf1 {[%emt 0:02:50]} Ne7 {[%emt 0:14:01]} 12. f3 {[%emt 0:08:27]} Bxg2 {[%emt 0:01:02]} 13. Kxg2 {[%emt 0:00:02]} O-O-O {[%emt 0:00:13]} 14. a4 {[%emt 0:19:10][%cal Ba2a4,Ba4a5,Ba5a6][%mdl 32]} Nh7 {[%emt 0:03:15]} 15. a5 {[%emt 0:04:17]} f5 {[%emt 0:03:55]} 16. a6 {[%emt 0:08:42] Hoping for axb7+.} b6 {[%emt 0:01:44]} 17. c5 {[%emt 0:11:22]} fxe4 $15 {[%emt 0:04:37]} (17... dxc5 18. Qxd7+ Rxd7 19. exf5 $11) 18. cxb6 {[%emt 0:01:40]} cxb6 {[%emt 0:00:10]} ({Black should play} 18... axb6 $15 19. fxe4 (19. Rxe4 Kb8 $11) 19... Kb8) 19. Rxe4 {[%emt 0:05:19]} Nf6 {[%emt 0:01:16]} 20. Re1 {[%emt 0:02:08]} g5 {[%emt 0:06:10]} 21. Qa4 {[%emt 0:00:11]} Rhe8 {[%emt 0:00:49]} (21... Rde8 {keeps more tension.} 22. Nd2 Rhf8 23. Ne4 Nxe4 24. fxe4 Qxa4 25. Rxa4 Kd7) 22. Qxd7+ {[%emt 0:04:25]} (22. Ne3 {looks sharper.} h5 23. Qxd7+ Kxd7 24. Nc4) 22... Kxd7 {[%emt 0:00:07]} 23. c4 {[%emt 0:01:41]} Nf5 {[%emt 0:00:40]} 24. Be3 {[%emt 0:01:32]} (24. Ne3 $11 Nd4 25. Bd2) 24... g4 {[%emt 0:00:48]} 25. fxg4 $1 {[%emt 0:02:24]} Nxg4 {[%emt 0:00:06]} 26. h3 {[%emt 0:01:26]} Nf6 {[%emt 0:02:54]} 27. g4 {[%emt 0:00:05]} Rg8 {[%emt 0:00:29]} 28. Kh2 {[%emt 0:01:02] [#]} Nxg4+ {[%emt 0:01:32]} 29. hxg4 {[%emt 0:00:47]} Rxg4 {[%emt 0:00:04][%cal Od8g8]} 30. Bxb6 {[%emt 0:07:44]} axb6 $19 {[%emt 0:01:46]} 31. a7 {[%emt 0:00:05] [#]} Ra8 {[%emt 0:00:05]} (31... Rxc4 32. a8=Q (32. a8=B Rh4+ 33. Kg1 Rg8+ 34. Kf2 Nd4 $11) (32. a8=R Rc2+ 33. Kg1 Rxa8 $16) 32... Rxa8 33. Rxa8 $16) (31... Rdg8 $1 $19 {[%cal Rg4h4]} 32. Ra3 Rg2+ (32... Rxc4 $2 33. Ng3 $19) 33. Kh1 Rg1+ (33... Rxb2 $2 34. a8=Q $18) 34. Kh2 R1g4 (34... R8g2+ 35. Kh3 $11)) 32. Nd2 $2 {[%emt 0:02:13][%mdl 8192]} (32. Ne3 $17 Nxe3 33. Rxe3) 32... Kc6 $2 {[%emt 0:01:23]} (32... Rh4+ 33. Kg2 Rg8+ 34. Kf3 Nd4+ 35. Ke3 Rh3+ (35... Nc2+ $2 36. Kd3 $19) 36. Kf2 Rh2+ 37. Kf1 Ne2 (37... Rxd2 38. a8=R $17) (37... Rf8+ $2 38. Kg1 $19) 38. Rxe2 Rh1+ 39. Kf2 Rxa1) 33. Re4 {[%emt 0:00:39]} (33. Re2 $142) 33... Rg7 {[%emt 0:00:53]} 34. Rf1 {[%emt 0:00:40]} Nd4 {[%emt 0:00:17]} 35. Rf6 {[%emt 0:00:14]} Re7 {[%emt 0:01:12]} (35... Rgxa7 36. Rxe5 $15) (35... Raxa7 $19 {And now ...Ra2 would win.} 36. Re1 Ra2) 36. Nb1 $2 {[%emt 0:00:57][%mdl 8192]} (36. Rh4 $1 $15) 36... Raxa7 {[%emt 0:00:27]} ({Less strong is} 36... Rexa7 37. Rg4 $19) 37. Nc3 {[%emt 0:00:24]} Re6 {[%emt 0:00:34]} 38. Rf8 {[%emt 0:00:34]} (38. Rxe6 {was worth a try.} Nxe6 39. Rh4) 38... Rg7 {[%emt 0:05:21] ...Reg6 is the strong threat.} 39. Nd5 {[%emt 0:00:31]} (39. Rc8+ $142 Kb7 40. Rf8) 39... Reg6 {[%emt 0:00:45] Strongly threatening ...Rg2+.} 40. b4 {[%emt 0:00:28]} b5 {[%emt 0:00:39] Weighted Error Value: White=0.71/Black=0.44.  Loses game:     	White=2     	---        Missed win:     	---       	Black=1      Mistake:       	White=6     	Black=3      Inaccurate:     	White=2     	Black=3      OK:         	White=5     	Black=14     Strong:       	White=1     	---} 0-1

[Event "Satranc Arena IM Series-1 2024"]
[Site "Izmir"]
[Date "2024.03.19"]
[Round "3.5"]
[White "Gur, Ali"]
[Black "Baltag, Iulian"]
[Result "0-1"]
[ECO "B25"]
[WhiteElo "1848"]
[BlackElo "2412"]
[Annotator "TA"]
[PlyCount "80"]
[EventDate "2024.03.18"]
[EventCountry "TUR"]
[SourceTitle "playchess.com"]
[Source "ChessBase"]
[SourceQuality "1"]
[TimeControl "5400+30"]

{[%evp 18,80,-10,-22,10,-14,0,-17,-12,-17,-12,-21,-12,-14,-8,-12,-22,-18,-14,-22,-22,-18,-15,-33,-23,-20,0,-25,-30,-29,0,0,0,0,-12,-6,0,-45,-12,-68,-75,-99,-104,-154,-146,-367,-353,-290,-134,-710,-705,-723,-723,-704,-707,-689,-688,-29984,-29985,-29979,-1335,-2341,-670,-29994,-29995]} 1. e4 {[%emt 0:00:03]} c5 {[%emt 0:00:07]} 2. Nc3 {[%emt 0:00:06]} d6 {[%emt 0:00:30]} 3. g3 {[%emt 0:00:14]} Nc6 {[%emt 0:00:11]} 4. Bg2 {[%emt 0:00:07]} g6 {[%emt 0:00:06]} 5. d3 {[%emt 0:00:05]} Bg7 {[%emt 0:00:05]} 6. f4 {[%emt 0:00:06]} e6 {[%emt 0:01:11][%cal Be7e6,Be6e5][%mdl 32]} 7. Nf3 {[%emt 0:00:09]} Nge7 {[%emt 0:00:05]} 8. O-O {[%emt 0:00:07]} O-O {[%emt 0:00:08]} 9. Be3 {[%emt 0:00:33]} Nd4 {[%emt 0:00:12]} 10. Rb1 {[%emt 0:00:31]} e5 {[%emt 0:02:55]} 11. Ne2 {[%emt 0:02:43]} Bg4 {[%emt 0:00:23]} 12. Nexd4 {[%emt 0:00:38]} cxd4 {[%emt 0:00:07] The position is equal.} 13. Bd2 {[%emt 0:00:05]} Qd7 {[%emt 0:03:01]} 14. c3 {[%emt 0:01:31]} d5 {[%emt 0:02:24]} 15. fxe5 {[%emt 0:01:53]} dxe4 {[%emt 0:01:04]} (15... dxc3 {with more complications.} 16. Bxc3 Rad8 17. Qb3 dxe4 18. Ng5 Nc6) 16. dxe4 {[%emt 0:00:02]} Nc6 {[%emt 0:02:23]} 17. cxd4 {[%emt 0:01:27]} Bxf3 {[%emt 0:00:30]} 18. Qxf3 {[%emt 0:00:24]} Qxd4+ {[%emt 0:00:58]} 19. Be3 {[%emt 0:00:08]} Qxe5 {[%emt 0:00:29]} (19... Nxe5 {simplifies} 20. Bxd4 Nxf3+ 21. Bxf3 Bxd4+ 22. Kg2 Rad8) 20. b3 {[%emt 0:02:52]} Qe6 {[%emt 0:00:16]} 21. Rbd1 {[%emt 0:00:46]} a5 {[%emt 0:00:26]} 22. Bc5 {[%emt 0:03:17]} Rfd8 {[%emt 0:01:47]} 23. Rd5 {[%emt 0:01:19]} Bd4+ {[%emt 0:08:05]} 24. Bxd4 {[%emt 0:00:25]} Nxd4 {[%emt 0:00:14]} 25. Qd3 {[%emt 0:03:12]} Rxd5 {[%emt 0:02:08]} 26. exd5 {[%emt 0:00:02]} Qb6 {[%emt 0:00:07][%cal Oa8e8]} 27. Kh1 {[%emt 0:00:12]} (27. Qe3 $5) 27... Re8 {[%emt 0:00:12]} 28. Rd1 {[%emt 0:02:48]} (28. d6 $11) 28... Nf5 $15 {[%emt 0:00:33]} 29. d6 {[%emt 0:01:37]} Nxd6 {[%emt 0:00:43]} 30. Qd5 {[%emt 0:02:00] [#]} (30. Qxd6 $2 Re1+ 31. Rxe1 Qxd6 32. Bxb7 Qd2 $19 (32... Qb4 $2 33. Re8+ Kg7 34. Bf3 $19)) ({Better is} 30. Bf3 Qf2 31. Rf1) 30... Qf2 $1 $17 {[%emt 0:04:49]} 31. Qxa5 {[%emt 0:06:03]} (31. Qf3 $17 Re1+ (31... Qxa2 $2 32. Rxd6 Re1+ 33. Bf1 $18) 32. Rxe1 Qxe1+ 33. Qf1) 31... Re2 $1 $19 {[%emt 0:00:31][%csl LRa2,LRg2]} 32. Rg1 {[%emt 0:00:10]} Nf5 $40 {[%emt 0:04:18][%mdl 128] Black attacks with force.} (32... Rxa2 $2 33. Qd8+ Kg7 34. Qxd6 $18) (32... h5 $19 33. Qc3 (33. Qd8+ $2 Kh7 $19) 33... Ne4 (33... Rxa2 $2 34. Qf3 $19)) 33. g4 $2 {[%emt 0:01:18][%mdl 8192] Loses the game.} (33. Qc7 $17) 33... Nh4 {[%emt 0:04:09]} (33... Rxa2 $2 34. Qd8+ Kg7 35. gxf5 $18) 34. Qc3 {[%emt 0:02:57] Repels Nf3} Nxg2 {[%emt 0:06:33]} 35. Qc8+ {[%emt 0:00:06]} Kg7 {[%emt 0:00:08] [#] ( -> ...Qf3)} 36. Qc3+ {[%emt 0:00:22]} Kf8 {[%emt 0:04:09][%cal Oe2e3] And now ...Re3! would win.} 37. Qh8+ {[%emt 0:04:36]} Ke7 {[%emt 0:00:19]} 38. Rd1 {[%emt 0:02:34]} Qb6 {[%emt 0:07:51]} ({And not} 38... Rxa2 39. Qe5+ Kf8 40. Rd8#) (38... Re1+ $142 39. Rxe1+ Nxe1 40. Qe5+ Kd7 41. Qd5+ Kc8 42. h4 Nf3 (42... Qxh4+ $2 43. Kg1 $19) 43. Qc4+ Kd8 44. Qd3+ Ke8 (44... Nd4 $2 45. h5 $19) 45. Qe4+ Kf8 46. Qxf3 Qxf3+ 47. Kh2 Qxg4 48. a4 f5 (48... Qxh4+ {gets mated.} 49. Kg2 Qe4+ 50. Kf1 f5 51. a5 Qc2 52. a6 bxa6 53. Ke1 f4 54. Kf1 f3 55. b4 Qg2+ 56. Ke1 Qe2#) 49. h5 gxh5 50. a5 h4 51. b4 h3 52. Kh1 Qg2#) 39. Qc3 {[%emt 0:14:49]} Nh4 {[%emt 0:03:45]} (39... Rxa2 40. Qe5+ Qe6 41. Qc5+ Ke8 42. Qd4 $18) 40. Rd5 {[%emt 0:04:29] Dodges f6} Qc6 {[%emt 0:42:38] Weighted Error Value: White=0.90/Black=0.44.  Loses game:     	White=2     	---        Mistake:       	White=2     	Black=1      Inaccurate:     	White=1     	Black=1      OK:         	White=6     	Black=10     Best:        	---       	Black=1      Strong:       	---       	Black=1} 0-1